[Event "17th Aeroflot Open-A 2019"]
[Site "Moscow"]
[Date "2019.02.21"]
[Round "2.23"]
[White "Anton Guijarro, David"]
[Black "Aryan Chopra"]
[Result "1/2-1/2"]
[ECO "E71"]
[WhiteElo "2642"]
[BlackElo "2540"]
[Annotator "RC"]
[PlyCount "69"]
[EventDate "2019.02.19"]
[EventCountry "RUS"]
[SourceTitle "playchess.com"]
[Source "ChessBase"]
[SourceQuality "1"]
[TimeControl "40/5400+30:1800+30"]

1. c4 {[%emt 0:00:00]} Nf6 {[%emt 0:00:00]} 2. Nc3 {[%emt 0:00:00]} g6 {[%emt 0:00:00]} 3. e4 {[%emt 0:00:27]} d6 {[%emt 0:00:00]} 4. d4 {[%emt 0:00:06]} Bg7 {[%emt 0:00:00]} 5. h3 {[%emt 0:00:16]} O-O {[%emt 0:00:00]} 6. Be3 {[%emt 0:00:12]} e5 {[%emt 0:00:11]} 7. d5 {[%emt 0:00:24]} Na6 {[%emt 0:00:20]} 8. g4 {[%emt 0:02:12]} Nc5 {[%emt 0:00:12]} 9. f3 {[%emt 0:00:17]} c6 {[%emt 0:00:24]} 10. Qd2 {[%emt 0:03:59]} cxd5 {[%emt 0:00:14]} 11. cxd5 {[%emt 0:00:38]} Bd7 {[%emt 0:00:21]} 12. Nge2 {[%emt 0:08:07]} Rc8 {[%emt 0:00:23]} 13. b4 {[%emt 0:16:59]} Na4 {[%emt 0:00:16]} 14. Nxa4 {[%emt 0:03:08]} Bxa4 {[%emt 0:00:05]} 15. Nc3 {[%emt 0:02:49]} Bd7 {[%emt 0:01:27]} 16. Rc1 {[%emt 0:09:21]} a6 {[%emt 0:20:26]} 17. Be2 {[%emt 0:11:36]} h5 {[%emt 0:12:55]} 18. a4 {[%emt 0:01:25]} h4 {[%emt 0:06:03]} 19. O-O {[%emt 0:03:12]} Nh7 {[%emt 0:00:31]} 20. b5 {[%emt 0:03:04]} Qa5 {[%emt 0:13:59]} 21. Rc2 {[%emt 0:07:46]} Bf6 {[%emt 0:01:57]} 22. Rfc1 {[%emt 0:02:45]} Bd8 {[%emt 0:07:22]} 23. Nd1 {[%emt 0:04:39]} Qxd2 {[%emt 0:13:49]} 24. Bxd2 {[%emt 0:00:06]} Bb6+ {[%emt 0:00:17]} 25. Be3 {[%emt 0:02:21]} Bxe3+ {[%emt 0:08:11]} 26. Nxe3 {[%emt 0:00:05]} axb5 {[%emt 0:00:10]} 27. Rxc8 {[%emt 0:08:49]} Rxc8 {[%emt 0:00:29]} 28. Rxc8+ {[%emt 0:00:06]} Bxc8 {[%emt 0:00:03]} 29. axb5 {[%emt 0:01:08]} Kf8 {[%emt 0:01:42]} 30. b6 {[%emt 0:02:01]} Ke7 {[%emt 0:02:18]} 31. Bb5 {[%emt 0:01:51]} Bd7 {[%emt 0:01:54]} 32. Bc6 {[%emt 0:01:06]} Bc8 {[%emt 0:00:19]} 33. Bb5 {[%emt 0:01:54]} Bd7 {[%emt 0:00:06]} 34. Bc6 {[%emt 0:00:45]} Bc8 {[%emt 0:00:01]} 35. Bb5 {[%emt 0:01:29]} 1/2-1/2

[Event "17th Aeroflot Open-A 2019"]
[Site "Moscow"]
[Date "2019.02.21"]
[Round "2.24"]
[White "Ghaem Maghami, Ehsan"]
[Black "Zvjaginsev, Vadim"]
[Result "1/2-1/2"]
[ECO "C08"]
[WhiteElo "2540"]
[BlackElo "2642"]
[Annotator "ChessBase"]
[PlyCount "41"]
[EventDate "2019.02.19"]
[EventCountry "RUS"]
[SourceTitle "playchess.com"]
[Source "ChessBase"]
[SourceQuality "1"]
[TimeControl "40/5400+30:1800+30"]

1. e4 {[%emt 0:00:00]} e6 {[%emt 0:05:25]} 2. d4 {[%emt 0:00:00]} d5 {[%emt 0:00:06]} 3. Nd2 {[%emt 0:00:37]} c5 {[%emt 0:00:31]} 4. exd5 {[%emt 0:06:00]} exd5 {[%emt 0:00:23]} 5. Ngf3 {[%emt 0:02:49]} a6 {[%emt 0:01:25]} 6. dxc5 {[%emt 0:02:08]} Bxc5 {[%emt 0:00:18]} 7. Nb3 {[%emt 0:01:25]} Bb6 {[%emt 0:01:13]} 8. Bd3 {[%emt 0:03:34]} Qe7+ {[%emt 0:11:35]} 9. Qe2 {[%emt 0:01:47]} Nc6 {[%emt 0:00:16]} 10. Bg5 {[%emt 0:15:54]} Qxe2+ {[%emt 0:07:15]} 11. Kxe2 {[%emt 0:05:20]} Nf6 {[%emt 0:10:02]} 12. Bxf6 {[%emt 0:07:41]} gxf6 {[%emt 0:00:05]} 13. Rhe1 {[%emt 0:00:12]} O-O {[%emt 0:04:17]} 14. Kf1 {[%emt 0:05:35]} Bg4 {[%emt 0:02:03]} 15. Be2 {[%emt 0:04:12]} Bf5 {[%emt 0:10:11]} 16. c3 {[%emt 0:02:56]} Rfd8 {[%emt 0:00:45]} 17. Nbd4 {[%emt 0:14:31]} Nxd4 {[%emt 0:12:10]} 18. Nxd4 {[%emt 0:00:50]} Bxd4 {[%emt 0:00:06]} 19. cxd4 {[%emt 0:00:06]} Rd6 {[%emt 0:00:12]} 20. Rac1 {[%emt 0:04:17]} Rb6 {[%emt 0:00:39]} 21. b3 {[%emt 0:01:53]} 1/2-1/2

[Event "17th Aeroflot Open-A 2019"]
[Site "Moscow"]
[Date "2019.02.21"]
[Round "2.25"]
[White "Iturrizaga Bonelli, Eduardo"]
[Black "Xu, Yinglun"]
[Result "1/2-1/2"]
[ECO "E04"]
[WhiteElo "2640"]
[BlackElo "2512"]
[Annotator "RC"]
[PlyCount "29"]
[EventDate "2019.02.19"]
[EventCountry "RUS"]
[SourceTitle "playchess.com"]
[Source "ChessBase"]
[SourceQuality "1"]
[TimeControl "40/5400+30:1800+30"]

1. d4 {[%emt 0:08:23]} d5 {[%emt 0:00:00]} 2. Nf3 {[%emt 0:00:11]} Nf6 {[%emt 0:00:17]} 3. c4 {[%emt 0:00:05]} e6 {[%emt 0:00:55]} 4. g3 {[%emt 0:00:08]} dxc4 {[%emt 0:01:31]} 5. Bg2 {[%emt 0:00:35]} c6 {[%emt 0:00:28]} 6. a4 {[%emt 0:01:20]} Bb4+ {[%emt 0:02:11]} 7. Bd2 {[%emt 0:01:12]} a5 {[%emt 0:00:14]} 8. Qc2 {[%emt 0:01:16]} O-O {[%emt 0:05:23]} 9. O-O {[%emt 0:02:08]} Bxd2 {[%emt 0:11:36]} 10. Nfxd2 {[%emt 0:06:03]} Qxd4 {[%emt 0:13:55]} 11. Nxc4 {[%emt 0:00:23]} e5 {[%emt 0:03:09]} 12. Qc3 {[%emt 0:12:06]} Qxc3 {[%emt 0:06:54]} 13. Nxc3 {[%emt 0:02:16]} Be6 {[%emt 0:00:53]} 14. Nxe5 {[%emt 0:00:10]} Na6 {[%emt 0:00:08]} 15. Nd3 {[%emt 0:04:53]} 1/2-1/2

[Event "17th Aeroflot Open-A 2019"]
[Site "Moscow"]
[Date "2019.02.21"]
[Round "2.28"]
[White "Khismatullin, Denis"]
[Black "Henderson de La Fuente, Lance"]
[Result "1-0"]
[ECO "E17"]
[WhiteElo "2621"]
[BlackElo "2490"]
[Annotator "ChessBase"]
[PlyCount "305"]
[EventDate "2019.02.19"]
[EventCountry "RUS"]
[SourceTitle "playchess.com"]
[Source "ChessBase"]
[SourceQuality "1"]
[TimeControl "40/5400+30:1800+30"]

1. d4 {[%emt 0:00:00]} Nf6 {[%emt 0:00:00]} 2. c4 {[%emt 0:00:00]} e6 {[%emt 0:00:01]} 3. Nf3 {[%emt 0:00:00]} b6 {[%emt 0:00:12]} 4. g3 {[%emt 0:00:00]} Bb7 {[%emt 0:00:05]} 5. Bg2 {[%emt 0:00:00]} Be7 {[%emt 0:00:11]} 6. O-O {[%emt 0:00:05]} O-O {[%emt 0:00:04]} 7. Re1 {[%emt 0:00:04]} d5 {[%emt 0:00:42]} 8. cxd5 {[%emt 0:00:08]} exd5 {[%emt 0:00:05]} 9. Nc3 {[%emt 0:00:05]} Nbd7 {[%emt 0:00:47]} 10. Bf4 {[%emt 0:02:07]} c5 {[%emt 0:00:32]} 11. Rc1 {[%emt 0:00:44]} Ne4 {[%emt 0:00:58]} 12. dxc5 {[%emt 0:00:09]} Nxc3 {[%emt 0:00:43]} 13. Rxc3 {[%emt 0:07:21]} Nxc5 {[%emt 0:00:50]} 14. Be5 {[%emt 0:04:49]} Re8 {[%emt 0:05:09]} 15. e3 {[%emt 0:07:57]} Qd7 {[%emt 0:10:42]} 16. Qc2 {[%emt 0:24:39]} Rac8 {[%emt 0:01:13]} 17. Rd1 {[%emt 0:06:10]} Qe6 {[%emt 0:15:29]} 18. Bd4 {[%emt 0:12:16]} h6 {[%emt 0:04:58]} 19. b4 {[%emt 0:03:39]} Ne4 {[%emt 0:01:59]} 20. Rxc8 {[%emt 0:00:06]} Rxc8 {[%emt 0:00:19]} 21. Qb2 {[%emt 0:00:04]} Bf8 {[%emt 0:02:50]} 22. Ne5 {[%emt 0:00:39]} Nd6 {[%emt 0:05:09]} 23. Nd3 {[%emt 0:01:43]} Nb5 {[%emt 0:15:54]} 24. Nf4 {[%emt 0:04:24]} Qd6 {[%emt 0:00:29]} 25. a3 {[%emt 0:02:48]} Nxd4 {[%emt 0:04:15]} 26. Qxd4 {[%emt 0:04:09]} a5 {[%emt 0:03:25]} 27. Bxd5 {[%emt 0:06:37]} Bxd5 {[%emt 0:00:12]} 28. Nxd5 {[%emt 0:00:05]} axb4 {[%emt 0:00:13]} 29. axb4 {[%emt 0:00:22]} b5 {[%emt 0:00:51]} 30. Qa7 {[%emt 0:05:06]} Qc6 {[%emt 0:04:18]} 31. Ne7+ {[%emt 0:02:34]} Bxe7 {[%emt 0:00:24]} 32. Qxe7 {[%emt 0:00:02]} Re8 {[%emt 0:02:10]} 33. Qd7 {[%emt 0:05:11]} Qxd7 {[%emt 0:12:46]} 34. Rxd7 {[%emt 0:00:02]} Re4 {[%emt 0:00:31]} 35. Rd8+ {[%emt 0:01:35]} Kh7 {[%emt 0:00:02]} 36. Rd4 {[%emt 0:00:07]} Rxd4 {[%emt 0:07:12]} 37. exd4 {[%emt 0:00:02]} Kg6 {[%emt 0:00:07]} 38. f3 {[%emt 0:02:02]} Kf5 {[%emt 0:01:10]} 39. Kf2 {[%emt 0:00:06]} Ke6 {[%emt 0:00:05]} 40. Ke3 {[%emt 0:00:00]} Kd5 {[%emt 0:00:00]} 41. Kd3 {[%emt 0:07:04]} g6 {[%emt 0:09:45]} 42. Kc3 {[%emt 0:17:46]} Kd6 {[%emt 0:01:20]} 43. Kd2 {[%emt 0:00:24]} Kd5 {[%emt 0:01:45]} 44. Kd3 {[%emt 0:00:37]} f5 {[%emt 0:00:29]} 45. Kc3 {[%emt 0:06:30]} Kd6 {[%emt 0:00:10]} 46. Kd2 {[%emt 0:00:10]} Ke6 {[%emt 0:00:58]} 47. Kd3 {[%emt 0:02:16]} Kd6 {[%emt 0:00:36]} 48. g4 {[%emt 0:00:40]} Kd5 {[%emt 0:01:34]} 49. h3 {[%emt 0:00:30]} Kd6 {[%emt 0:02:09]} 50. h4 {[%emt 0:00:20]} h5 {[%emt 0:01:01]} 51. gxf5 {[%emt 0:00:32]} gxf5 {[%emt 0:00:00]} 52. Ke3 {[%emt 0:00:08]} Kd5 {[%emt 0:00:00]} 53. Kf4 {[%emt 0:00:06]} Kxd4 {[%emt 0:00:00]} 54. Kxf5 {[%emt 0:01:23]} Kc4 {[%emt 0:00:00]} 55. f4 {[%emt 0:00:17]} Kxb4 {[%emt 0:00:27]} 56. Kg5 {[%emt 0:00:15]} Kc4 {[%emt 0:01:53]} 57. f5 {[%emt 0:00:04]} b4 {[%emt 0:00:04]} 58. f6 {[%emt 0:00:03]} b3 {[%emt 0:00:04]} 59. f7 {[%emt 0:00:03]} b2 {[%emt 0:00:04]} 60. f8=Q {[%emt 0:00:11]} b1=Q {[%emt 0:00:03]} 61. Qf7+ {[%emt 0:02:16]} Kd4 {[%emt 0:00:34]} 62. Kxh5 {[%emt 0:00:49]} Qd1+ {[%emt 0:01:51]} 63. Kh6 {[%emt 0:00:13]} Ke3 {[%emt 0:02:35]} 64. Qf6 {[%emt 0:00:50]} Qd7 {[%emt 0:00:50]} 65. h5 {[%emt 0:00:24]} Ke2 {[%emt 0:00:36]} 66. Qe5+ {[%emt 0:00:34]} Kd1 {[%emt 0:01:00]} 67. Kg5 {[%emt 0:00:32]} Qd8+ {[%emt 0:00:31]} 68. Kg6 {[%emt 0:00:31]} Qg8+ {[%emt 0:00:35]} 69. Kh6 {[%emt 0:00:25]} Qf8+ {[%emt 0:00:20]} 70. Kg5 {[%emt 0:00:18]} Qg8+ {[%emt 0:00:23]} 71. Kh4 {[%emt 0:00:30]} Qf8 {[%emt 0:00:42]} 72. Qd4+ {[%emt 0:00:45]} Kc2 {[%emt 0:01:47]} 73. Kg5 {[%emt 0:00:27]} Qg8+ {[%emt 0:00:43]} 74. Kh6 {[%emt 0:00:13]} Qe6+ {[%emt 0:00:04]} 75. Kg5 {[%emt 0:00:37]} Qg8+ {[%emt 0:00:05]} 76. Kh4 {[%emt 0:00:12]} Qf8 {[%emt 0:00:17]} 77. Qe4+ {[%emt 0:01:00]} Kd1 {[%emt 0:00:34]} 78. Qe5 {[%emt 0:00:27]} Qf2+ {[%emt 0:02:41]} 79. Kg5 {[%emt 0:00:11]} Qg2+ {[%emt 0:00:32]} 80. Kf6 {[%emt 0:00:40]} Qc6+ {[%emt 0:01:10]} 81. Kf5 {[%emt 0:00:38]} Qd7+ {[%emt 0:01:03]} 82. Kf6 {[%emt 0:00:37]} Qd8+ {[%emt 0:00:21]} 83. Kg7 {[%emt 0:00:27]} Qd7+ {[%emt 0:00:15]} 84. Kf6 {[%emt 0:00:29]} Qd8+ {[%emt 0:00:06]} 85. Kf7 {[%emt 0:00:18]} Qd7+ {[%emt 0:00:04]} 86. Kg6 {[%emt 0:00:05]} Qc6+ {[%emt 0:00:27]} 87. Kg5 {[%emt 0:00:50]} Qg2+ {[%emt 0:00:08]} 88. Kh4 {[%emt 0:00:25]} Qf2+ {[%emt 0:00:11]} 89. Qg3 {[%emt 0:00:21]} Qf6+ {[%emt 0:00:06]} 90. Kh3 {[%emt 0:00:31]} Qf1+ {[%emt 0:00:27]} 91. Kg4 {[%emt 0:00:29]} Qc4+ {[%emt 0:00:07]} 92. Qf4 {[%emt 0:00:14]} Qg8+ {[%emt 0:00:28]} 93. Kh3 {[%emt 0:00:35]} Qb3+ {[%emt 0:00:55]} 94. Kh4 {[%emt 0:00:46]} Qd5 {[%emt 0:01:57]} 95. h6 {[%emt 0:00:39]} Qh1+ {[%emt 0:00:24]} 96. Kg4 {[%emt 0:00:47]} Qg2+ {[%emt 0:00:32]} 97. Kf5 {[%emt 0:00:25]} Qd5+ {[%emt 0:00:17]} 98. Qe5 {[%emt 0:00:38]} Qd7+ {[%emt 0:01:23]} 99. Qe6 {[%emt 0:00:28]} Qd3+ {[%emt 0:00:36]} 100. Qe4 {[%emt 0:00:30]} Qd7+ {[%emt 0:00:15]} 101. Kg5 {[%emt 0:00:19]} Qd2+ {[%emt 0:00:56]} 102. Kg6 {[%emt 0:00:44]} Qd6+ {[%emt 0:00:13]} 103. Kg5 {[%emt 0:00:26]} Qd2+ {[%emt 0:00:05]} 104. Qf4 {[%emt 0:00:31]} Qd5+ {[%emt 0:00:46]} 105. Qf5 {[%emt 0:00:28]} Qd2+ {[%emt 0:00:50]} 106. Qf4 {[%emt 0:00:33]} Qd5+ {[%emt 0:00:05]} 107. Kg6 {[%emt 0:00:32]} Qe6+ {[%emt 0:01:12]} 108. Kg7 {[%emt 0:00:22]} Qe7+ {[%emt 0:00:31]} 109. Qf7 {[%emt 0:00:37]} Qe5+ {[%emt 0:00:20]} 110. Kg8 {[%emt 0:00:32]} Qg3+ {[%emt 0:00:36]} 111. Kh7 {[%emt 0:00:28]} Qd3+ {[%emt 0:00:14]} 112. Kh8 {[%emt 0:00:25]} Qd4+ {[%emt 0:00:21]} 113. Kg8 {[%emt 0:00:16]} Qd8+ {[%emt 0:00:19]} 114. Qf8 {[%emt 0:00:25]} Qd5+ {[%emt 0:00:12]} 115. Kg7 {[%emt 0:00:20]} Qd4+ {[%emt 0:00:13]} 116. Qf6 {[%emt 0:00:17]} Qd7+ {[%emt 0:00:15]} 117. Kg6 {[%emt 0:00:05]} Qd3+ {[%emt 0:00:20]} 118. Kf7 {[%emt 0:00:59]} Qd7+ {[%emt 0:01:02]} 119. Kf8 {[%emt 0:00:31]} Qc8+ {[%emt 0:00:13]} 120. Ke7 {[%emt 0:00:05]} Qb7+ {[%emt 0:00:25]} 121. Ke8 {[%emt 0:00:21]} Qb5+ {[%emt 0:00:36]} 122. Ke7 {[%emt 0:00:57]} Qb7+ {[%emt 0:00:10]} 123. Ke6 {[%emt 0:00:53]} Qc6+ {[%emt 0:00:32]} 124. Ke5 {[%emt 0:00:20]} Qc3+ {[%emt 0:00:18]} 125. Kf5 {[%emt 0:00:04]} Qd3+ {[%emt 0:00:12]} 126. Ke6 {[%emt 0:00:25]} Qc4+ {[%emt 0:00:12]} 127. Kd7 {[%emt 0:00:07]} Qa4+ {[%emt 0:00:54]} 128. Qc6 {[%emt 0:00:22]} Qh4 {[%emt 0:04:46]} 129. Kc8 {[%emt 0:02:00]} Ke1 {[%emt 0:03:16]} 130. Qe6+ {[%emt 0:00:30]} Kf1 {[%emt 0:01:32]} 131. Qf5+ {[%emt 0:00:33]} Ke1 {[%emt 0:00:45]} 132. h7 {[%emt 0:00:14]} Qc4+ {[%emt 0:00:14]} 133. Kd8 {[%emt 0:00:42]} Qd4+ {[%emt 0:00:19]} 134. Ke8 {[%emt 0:00:39]} Qa4+ {[%emt 0:01:27]} 135. Kf7 {[%emt 0:00:27]} Qa7+ {[%emt 0:02:33]} 136. Kf6 {[%emt 0:00:32]} Qa8 {[%emt 0:00:39]} 137. Qb1+ {[%emt 0:00:31]} Kd2 {[%emt 0:00:38]} 138. Qb4+ {[%emt 0:00:16]} Kc2 {[%emt 0:00:22]} 139. Qc4+ {[%emt 0:00:20]} Kb1 {[%emt 0:00:17]} 140. Qf1+ {[%emt 0:00:14]} Kb2 {[%emt 0:00:10]} 141. Qf2+ {[%emt 0:00:09]} Kb1 {[%emt 0:01:18]} 142. Qg1+ {[%emt 0:00:08]} Kb2 {[%emt 0:00:10]} 143. Qh2+ {[%emt 0:01:46]} Kb1 {[%emt 0:00:17]} 144. h8=Q {[%emt 0:00:28]} Qf3+ {[%emt 0:01:01]} 145. Kg5 {[%emt 0:00:34]} Qe3+ {[%emt 0:01:11]} 146. Qf4 {[%emt 0:00:31]} Qg1+ {[%emt 0:00:12]} 147. Kf5 {[%emt 0:00:36]} Qc5+ {[%emt 0:00:07]} 148. Qhe5 {[%emt 0:00:15]} Qf8+ {[%emt 0:00:13]} 149. Kg4 {[%emt 0:00:15]} Qg8+ {[%emt 0:00:07]} 150. Qeg5 {[%emt 0:00:09]} Qb3 {[%emt 0:00:35]} 151. Qc1+ {[%emt 0:00:10]} Ka2 {[%emt 0:00:05]} 152. Qa5+ {[%emt 0:00:07]} Qa4+ {[%emt 0:00:05]} 153. Qxa4# {[%emt 0:00:05]} 1-0

[Event "17th Aeroflot Open-A 2019"]
[Site "Moscow"]
[Date "2019.02.21"]
[Round "2.37"]
[White "Gukesh D"]
[Black "Maghsoodloo, Parham"]
[Result "0-1"]
[ECO "B06"]
[WhiteElo "2508"]
[BlackElo "2666"]
[Annotator "RC"]
[PlyCount "136"]
[EventDate "2019.02.19"]
[EventCountry "RUS"]
[SourceTitle "playchess.com"]
[Source "ChessBase"]
[SourceQuality "1"]
[TimeControl "40/5400+30:1800+30"]

1. e4 g6 2. d4 Bg7 3. Nf3 d6 4. Bc4 Nc6 5. O-O Nf6 6. d5 Nb8 7. Nc3 Bg4 8. h3 Bxf3 9. Qxf3 O-O 10. Be3 c6 11. Rad1 Qc7 12. dxc6 Nxc6 13. Qe2 a6 14. Bg5 e6 15. Qd2 Qa5 16. Bh6 Rfd8 17. Bxg7 Kxg7 18. a3 b5 19. Bb3 Qb6 20. Qf4 Qc5 21. Rd2 Rd7 22. Rfd1 Rad8 23. Rd3 h6 24. Qe3 g5 25. Ne2 Qxe3 26. Rxe3 Ne5 27. Nd4 h5 28. c3 h4 29. a4 Rb8 30. axb5 axb5 31. Nc2 Rdd8 32. Rd4 Kf8 33. Re1 Ke7 34. f3 Nfd7 35. Nb4 Rdc8 36. Red1 Nc5 37. Bc2 Nc4 38. Rb1 Nd7 39. Rdd1 Nde5 40. Bd3 Na5 41. Bf1 Nac6 42. Nc2 b4 43. cxb4 Nxb4 44. Ne3 Rc6 45. Rdc1 Rcb6 46. Rc7+ Kd8 47. Rc3 Nbc6 48. Rd1 Kd7 49. Nc4 Nxc4 50. Bxc4 Rxb2 51. Rcd3 Ke7 52. Rxd6 Ne5 53. Bf1 Ra8 54. R6d2 Raa2 55. Rxb2 Rxb2 56. Re1 Ng6 57. Re2 Rb1 58. Kf2 Nf4 59. Ra2 Nh5 60. Bd3 Rb3 61. Bc4 Rc3 62. Bb5 Kf6 63. Be8 Rc8 64. Bd7 Rc7 65. Be8 Ke5 66. Ke3 Rc3+ 67. Kf2 Rc7 68. Ke3 Rc8 0-1

[Event "17th Aeroflot Open-A 2019"]
[Site "Moscow"]
[Date "2019.02.22"]
[Round "3.1"]
[White "Sasikiran, Krishnan"]
[Black "Aravindh, Chithambaram VR."]
[Result "1-0"]
[ECO "C60"]
[WhiteElo "2678"]
[BlackElo "2601"]
[Annotator "ChessBase"]
[PlyCount "63"]
[EventDate "2019.02.19"]
[EventCountry "RUS"]
[SourceTitle "playchess.com"]
[Source "ChessBase"]
[SourceQuality "1"]
[TimeControl "40/5400+30:1800+30"]

1. e4 {[%emt 0:00:00]} e5 {[%emt 0:00:00]} 2. Nf3 {[%emt 0:00:00]} Nc6 {[%emt 0:00:00]} 3. Bb5 {[%emt 0:00:00]} Nge7 {[%emt 0:00:02]} 4. O-O {[%emt 0:09:11]} g6 {[%emt 0:00:26]} 5. c3 {[%emt 0:00:33]} a6 {[%emt 0:00:09]} 6. Ba4 {[%emt 0:01:03]} Bg7 {[%emt 0:00:20]} 7. d4 {[%emt 0:00:33]} exd4 {[%emt 0:00:09]} 8. cxd4 {[%emt 0:00:57]} b5 {[%emt 0:00:09]} 9. Bb3 {[%emt 0:00:26]} O-O {[%emt 0:00:30]} 10. a4 {[%emt 0:04:39]} b4 {[%emt 0:03:15]} 11. a5 {[%emt 0:02:09]} d5 {[%emt 0:02:05]} 12. exd5 {[%emt 0:05:06]} Nxd5 {[%emt 0:00:07]} 13. Bg5 {[%emt 0:02:43]} f6 {[%emt 0:01:43]} 14. Be3 {[%emt 0:04:53]} Kh8 {[%emt 0:07:05]} 15. Nbd2 {[%emt 0:06:05]} Nce7 {[%emt 0:10:01]} 16. Re1 {[%emt 0:15:30]} g5 {[%emt 0:21:10]} 17. h3 {[%emt 0:13:54]} Ng6 {[%emt 0:01:34]} 18. Rc1 {[%emt 0:03:50]} Bb7 {[%emt 0:10:06]} 19. Qc2 {[%emt 0:06:13]} Re8 {[%emt 0:02:48]} 20. Ne4 {[%emt 0:03:06]} Bh6 {[%emt 0:18:52]} 21. Bd2 {[%emt 0:04:26]} Ndf4 {[%emt 0:01:12]} 22. d5 {[%emt 0:02:38]} Bg7 {[%emt 0:01:45]} 23. Rcd1 {[%emt 0:04:24]} Qc8 {[%emt 0:04:19]} 24. Bxf4 {[%emt 0:03:26]} Nxf4 {[%emt 0:04:12]} 25. Nexg5 {[%emt 0:01:47]} fxg5 {[%emt 0:00:15]} 26. Nxg5 {[%emt 0:00:14]} Rxe1+ {[%emt 0:00:55]} 27. Rxe1 {[%emt 0:00:06]} Qg8 {[%emt 0:00:11]} 28. d6 {[%emt 0:00:41]} Bd5 {[%emt 0:01:35]} 29. Bxd5 {[%emt 0:00:19]} Nxd5 {[%emt 0:00:05]} 30. d7 {[%emt 0:00:26]} Bf6 {[%emt 0:03:30]} 31. Re8 {[%emt 0:00:30]} Bxg5 {[%emt 0:00:10]} 32. Qc6 {[%emt 0:01:07]} 1-0

[Event "17th Aeroflot Open-A 2019"]
[Site "Moscow"]
[Date "2019.02.22"]
[Round "3.2"]
[White "Narayanan.S.L"]
[Black "Zhou, Jianchao"]
[Result "1/2-1/2"]
[ECO "D10"]
[WhiteElo "2593"]
[BlackElo "2615"]
[Annotator "ChessBase"]
[PlyCount "57"]
[EventDate "2019.02.19"]
[EventCountry "RUS"]
[SourceTitle "playchess.com"]
[Source "ChessBase"]
[SourceQuality "1"]
[TimeControl "40/5400+30:1800+30"]

1. d4 {[%emt 0:01:15]} d5 {[%emt 0:00:00]} 2. c4 {[%emt 0:00:05]} c6 {[%emt 0:00:00]} 3. Nc3 {[%emt 0:00:13]} Nf6 {[%emt 0:00:00]} 4. e3 {[%emt 0:00:06]} a6 {[%emt 0:03:09]} 5. Nf3 {[%emt 0:00:06]} Bf5 {[%emt 0:02:32]} 6. Ne5 {[%emt 0:00:16]} Nbd7 {[%emt 0:04:28]} 7. Qb3 {[%emt 0:00:08]} Qc7 {[%emt 0:00:36]} 8. cxd5 {[%emt 0:00:07]} Nxe5 {[%emt 0:02:34]} 9. dxe5 {[%emt 0:00:06]} Nxd5 {[%emt 0:00:28]} 10. Nxd5 {[%emt 0:00:06]} cxd5 {[%emt 0:00:06]} 11. Bd2 {[%emt 0:00:05]} Qxe5 {[%emt 0:04:45]} 12. Rc1 {[%emt 0:15:16]} Qb8 {[%emt 0:43:12]} 13. Ba5 {[%emt 0:42:53]} Bd7 {[%emt 0:14:12]} 14. Rc7 {[%emt 0:13:00]} Bc6 {[%emt 0:01:46]} 15. Qc3 {[%emt 0:00:06]} e6 {[%emt 0:04:07]} 16. Be2 {[%emt 0:00:30]} Bd6 {[%emt 0:07:13]} 17. Qxg7 {[%emt 0:00:33]} Bxc7 {[%emt 0:00:32]} 18. Bxc7 {[%emt 0:00:11]} Qxc7 {[%emt 0:00:07]} 19. Qxh8+ {[%emt 0:00:06]} Ke7 {[%emt 0:01:59]} 20. Qxa8 {[%emt 0:03:00]} Qa5+ {[%emt 0:00:01]} 21. Kf1 {[%emt 0:04:13]} Qd2 {[%emt 0:01:23]} 22. f3 {[%emt 0:04:38]} Qc1+ {[%emt 0:01:30]} 23. Kf2 {[%emt 0:00:04]} Qxh1 {[%emt 0:00:03]} 24. Qb8 {[%emt 0:00:30]} Qb1 {[%emt 0:00:36]} 25. Qc7+ {[%emt 0:01:10]} Ke8 {[%emt 0:00:27]} 26. Qc8+ {[%emt 0:01:31]} Ke7 {[%emt 0:00:01]} 27. Qc7+ {[%emt 0:01:59]} Ke8 {[%emt 0:00:01]} 28. Qc8+ {[%emt 0:00:57]} Ke7 {[%emt 0:00:01]} 29. Qc7+ {[%emt 0:00:07]} 1/2-1/2

[Event "17th Aeroflot Open-A 2019"]
[Site "Moscow"]
[Date "2019.02.22"]
[Round "3.12"]
[White "Ganguly, Surya Shekhar"]
[Black "Tabatabaei, M.amin"]
[Result "1/2-1/2"]
[ECO "B67"]
[WhiteElo "2636"]
[BlackElo "2590"]
[Annotator "RC"]
[PlyCount "85"]
[EventDate "2019.02.19"]
[EventCountry "RUS"]
[SourceTitle "playchess.com"]
[Source "ChessBase"]
[SourceQuality "1"]
[TimeControl "40/5400+30:1800+30"]

1. e4 {[%emt 0:00:00]} c5 {[%emt 0:01:52]} 2. Nf3 {[%emt 0:00:00]} d6 {[%emt 0:00:06]} 3. d4 {[%emt 0:00:23]} cxd4 {[%emt 0:00:07]} 4. Nxd4 {[%emt 0:00:05]} Nf6 {[%emt 0:00:07]} 5. Nc3 {[%emt 0:00:06]} Nc6 {[%emt 0:00:04]} 6. Bg5 {[%emt 0:00:21]} e6 {[%emt 0:00:08]} 7. Qd2 {[%emt 0:00:18]} a6 {[%emt 0:00:06]} 8. O-O-O {[%emt 0:00:06]} Bd7 {[%emt 0:00:05]} 9. f3 {[%emt 0:01:16]} Be7 {[%emt 0:00:07]} 10. h4 {[%emt 0:02:16]} h6 {[%emt 0:00:06]} 11. Be3 {[%emt 0:00:15]} h5 {[%emt 0:00:05]} 12. Nxc6 {[%emt 0:03:29]} Bxc6 {[%emt 0:00:08]} 13. Bg5 {[%emt 0:01:41]} b5 {[%emt 0:05:07]} 14. Ne2 {[%emt 0:08:34]} Qb6 {[%emt 0:00:54]} 15. Nd4 {[%emt 0:00:36]} Bd7 {[%emt 0:00:15]} 16. Qe3 {[%emt 0:07:55]} b4 {[%emt 0:23:00]} 17. Kb1 {[%emt 0:01:48]} Qc5 {[%emt 0:02:55]} 18. Be2 {[%emt 0:08:29]} O-O {[%emt 0:00:51]} 19. Nb3 {[%emt 0:10:52]} Qxe3 {[%emt 0:02:44]} 20. Bxe3 {[%emt 0:00:06]} a5 {[%emt 0:00:58]} 21. Bg5 {[%emt 0:01:48]} Rfd8 {[%emt 0:01:25]} 22. Rd2 {[%emt 0:08:28]} Kf8 {[%emt 0:08:37]} 23. Rhd1 {[%emt 0:03:03]} a4 {[%emt 0:00:31]} 24. Nc1 {[%emt 0:00:56]} Bc6 {[%emt 0:00:11]} 25. Rd4 {[%emt 0:05:21]} Rab8 {[%emt 0:02:22]} 26. Nd3 {[%emt 0:06:10]} Bb5 {[%emt 0:05:58]} 27. Rxb4 {[%emt 0:01:09]} d5 {[%emt 0:01:45]} 28. Bxf6 {[%emt 0:03:15]} gxf6 {[%emt 0:03:09]} 29. Rd4 {[%emt 0:00:05]} f5 {[%emt 0:07:03]} 30. e5 {[%emt 0:05:03]} Rdc8 {[%emt 0:01:21]} 31. f4 {[%emt 0:05:17]} Bc4 {[%emt 0:21:53]} 32. Rh1 {[%emt 0:01:40]} Bd8 {[%emt 0:03:28]} 33. Nc1 {[%emt 0:00:10]} Bb6 {[%emt 0:00:07]} 34. Rdd1 {[%emt 0:00:06]} Be3 {[%emt 0:00:31]} 35. Bxc4 {[%emt 0:01:30]} dxc4 {[%emt 0:00:15]} 36. Rhf1 {[%emt 0:01:45]} Rb5 {[%emt 0:04:49]} 37. Rf3 {[%emt 0:00:59]} Rcb8 {[%emt 0:00:07]} 38. b3 {[%emt 0:00:26]} Bxc1 {[%emt 0:00:14]} 39. Kxc1 {[%emt 0:00:40]} axb3 {[%emt 0:00:17]} 40. axb3 {[%emt 0:00:00]} cxb3 {[%emt 0:00:00]} 41. cxb3 {[%emt 0:01:38]} Rxb3 {[%emt 0:00:12]} 42. Rd8+ {[%emt 0:00:53]} Rxd8 {[%emt 0:00:07]} 43. Rxb3 {[%emt 0:00:03]} 1/2-1/2